fUST/lending_fUST_20250211
["ID","MTS","AMOUNT","RATE_DAILY","PERIOD"]
[352623285,1739203851752,-818.75,0.0001315,2]
[352623286,1739203851763,-2389.8,0.0001315,2]
[352623287,1739203851772,-500.0,0.0001315,2]
[352623288,1739203851783,-500.0,0.0001315,2]
[352623289,1739203851792,-983.98,0.0001315,2]
[352623290,1739203851802,-971.26,0.0001315,2]
[352623291,1739203851811,-3346.58,0.0001315,2]
[352623292,1739203851821,-500.0,0.0001315,2]
[352623293,1739203851830,-500.0,0.0001315,2]
[352623294,1739203851840,-500.0,0.0001315,2]
[352623295,1739203851850,-878.2,0.0001315,2]
[352623296,1739203851859,-150.0,0.00013176,2]
[352623297,1739203851868,-252.62,0.00013176,2]
[352623298,1739203851877,-150.204,0.00013179,2]
[352623299,1739203851886,-150.0,0.00013179,2]
[352623300,1739203851895,-1934.517,0.00013179,2]
[352623301,1739203851904,-538.0,0.00013179,2]
[352623302,1739203851913,-2271.991,0.00013179,2]
[352623303,1739203851922,-754.80410476,0.00013201,2]
[352623304,1739203851932,-637.54620436,0.00013287,2]
[352623305,1739203851941,-500.0,0.00013287,2]
[352623306,1739203851950,-500.0,0.00013287,2]
[352623307,1739203851959,-318.52,0.00013287,2]
[352623308,1739203851969,-500.0,0.00013287,2]
[352623309,1739203851978,-500.0,0.00013287,2]
[352623310,1739203851987,-500.0,0.00013287,2]
[352623311,1739203851996,-500.0,0.00013287,2]
[352623312,1739203852006,-808.36,0.00013287,2]
[352623313,1739203852016,-500.0,0.00013287,2]
[352623314,1739203852024,-500.0,0.00013287,2]
[352623315,1739203852033,-9369.98,0.00013287,2]
[352623316,1739203852042,-327.47,0.00013287,2]
[352623317,1739203852052,-500.0,0.00013287,2]
[352623318,1739203852062,-1295.06,0.00013287,2]
[352623319,1739203852161,-3349.24,0.00013287,2]
[352623320,1739203852171,-500.0,0.00013287,2]
[352623321,1739203852181,-500.0,0.00013287,2]
[352623322,1739203852191,-500.0,0.00013287,2]
[352623323,1739203852200,-880.25,0.00013287,2]
[352623324,1739203852209,-818.75,0.00013287,2]
[352623325,1739203852220,-2389.8,0.00013287,2]
[352623326,1739203852229,-304.51618379,0.00013287,2]
[352623327,1739203852240,-500.0,0.00013287,2]
[352623328,1739203852249,-983.98,0.00013287,2]
[352623329,1739203852259,-971.26,0.00013287,2]
[352623330,1739203852269,-3346.58,0.00013287,2]
[352623331,1739203852278,-500.0,0.00013287,2]
[352623332,1739203852288,-500.0,0.00013287,2]
[352623333,1739203852298,-500.0,0.00013287,2]
[352623334,1739203852311,-878.2,0.00013287,2]
[352623335,1739203852320,-154.082,0.000133,2]
[352623336,1739203852329,-754.80410476,0.00013301,2]
[352623337,1739203852339,-500.0,0.00013385,2]
[352623338,1739203852349,-151.0,0.000134,2]
[352623339,1739203852358,-754.80410476,0.00013401,2]
[352623340,1739203852367,-500.0,0.00013424,2]
[352623341,1739203852377,-500.0,0.00013424,2]
[352623342,1739203852386,-500.0,0.00013424,2]
[352623343,1739203852395,-500.0,0.00013424,2]
[352623344,1739203852404,-500.0,0.00013424,2]
[352623345,1739203852414,-368.70672408,0.00013424,2]
[352623346,1739203852423,-808.36,0.00013424,2]
[352623347,1739203852432,-501.31475478,0.00013424,2]
[352623348,1739203852442,-500.0,0.00013424,2]
[352623349,1739203852451,-9369.98,0.00013424,2]
[352623350,1739203852460,-500.0,0.00013424,2]
[352623351,1739203852470,-1295.06,0.00013424,2]
[352623352,1739203852479,-3349.24,0.00013424,2]
[352623353,1739203852488,-259.79,0.00013424,2]
[352623354,1739203852498,-500.0,0.00013424,2]
[352623355,1739203852507,-500.0,0.00013424,2]
[352623356,1739203852518,-880.25,0.00013424,2]
[352623357,1739203852528,-818.75,0.00013424,2]
[352623358,1739203852538,-2389.8,0.00013424,2]
[352623359,1739203852548,-153.51,0.00013424,2]
[352623360,1739203852558,-983.98,0.00013424,2]
[352623361,1739203852567,-971.26,0.00013424,2]
[352623362,1739203852577,-3346.58,0.00013424,2]
[352623363,1739203852587,-500.0,0.00013424,2]
[352623364,1739203852597,-339.0463973,0.00013424,2]
[352623365,1739203852607,-640.28664369,0.00013424,2]
[352623366,1739203852616,-878.2,0.00013424,2]
[352623367,1739203852625,-754.80410476,0.00013501,2]
[352623368,1739203852635,-176.57946952,0.00013526,2]
[352623369,1739203852644,-500.0,0.00013561,2]
[352623370,1739203852654,-500.0,0.00013561,2]
[352623371,1739203852663,-500.0,0.00013561,2]
[352623372,1739203852672,-500.0,0.00013561,2]
[352623373,1739203852681,-161.09,0.00013561,2]
[352623374,1739203852691,-808.36,0.00013561,2]
[352623375,1739203852700,-500.0,0.00013561,2]
[352623376,1739203852709,-9369.98,0.00013561,2]
[352623377,1739203852719,-500.0,0.00013561,2]
[352623378,1739203852729,-1295.06,0.00013561,2]
[352623379,1739203852738,-3349.24,0.00013561,2]
[352623380,1739203852748,-438.41312328,0.00013561,2]
[352623381,1739203852758,-640.05695244,0.00013561,2]
[352623382,1739203852768,-880.25,0.00013561,2]
[352623383,1739203852778,-818.75,0.00013561,2]
[352623384,1739203852788,-2389.8,0.00013561,2]
[352623385,1739203852797,-983.98,0.00013561,2]
[352623386,1739203852807,-971.26,0.00013561,2]
[352623387,1739203852816,-3346.58,0.00013561,2]
[352623388,1739203852827,-500.0,0.00013561,2]
[352623389,1739203852836,-878.2,0.00013561,2]
[352623390,1739203852845,-754.80410476,0.00013601,2]
[352623391,1739203852855,-150.18,0.00013698,2]
[352623392,1739203852864,-297.19412291,0.00013698,2]
[352623393,1739203852873,-500.0,0.00013698,2]
[352623394,1739203852883,-500.0,0.00013698,2]
[352623395,1739203852893,-500.0,0.00013698,2]
[352623396,1739203852903,-150.2,0.00013698,2]
[352623397,1739203852912,-808.36,0.00013698,2]
[352623398,1739203852922,-616.90293675,0.00013698,2]
[352623399,1739203852931,-9369.98,0.00013698,2]
[352623400,1739203852940,-404.16,0.00013698,2]
[352623401,1739203852951,-1295.06,0.00013698,2]
[352623402,1739203852960,-3349.24,0.00013698,2]
[352623403,1739203852969,-150.2,0.00013698,2]
[352623404,1739203852978,-500.0,0.00013698,3]
[352623405,1739203852987,-500.0,0.00013698,2]
[352623406,1739203852997,-500.0,0.00013698,2]
[352623407,1739203853006,-150.2,0.00013698,2]
[352623408,1739203853017,-150.7741827,0.00013698,2]
[352623409,1739203853026,-880.25,0.00013698,2]
[352623410,1739203853036,-818.75,0.00013698,2]
[352623411,1739203853046,-2389.8,0.00013698,2]
[352623412,1739203853055,-983.98,0.00013698,2]
[352623413,1739203853066,-971.26,0.00013698,2]
[352623414,1739203853079,-3346.58,0.00013698,2]
[352623415,1739203853093,-500.0,0.00013698,2]
[352623416,1739203853103,-878.2,0.00013698,2]
[352623417,1739203853112,-450.133734,0.00013699,2]
[352623418,1739203853121,-319.994948,0.00013699,2]
[352623419,1739203853131,-500.0,0.00013699,2]
[352623420,1739203853140,-484.10245036,0.00013699,2]
[352623421,1739203853150,-500.0,0.00013699,2]
[352623422,1739203853160,-500.0,0.00013699,2]
[352623423,1739203853170,-403.18560564,0.00013699,2]
[352623424,1739203853180,-500.0,0.00013699,2]
[352623425,1739203853189,-500.0,0.00013699,2]
[352623426,1739203853199,-500.0,0.00013699,2]
[352623427,1739203853209,-300.0,0.00013699,2]
[352623428,1739203853219,-500.0,0.00013699,2]
[352623429,1739203853229,-500.0,0.00013699,2]
[352623430,1739203853239,-465.80340565,0.00013699,2]
[352623431,1739203853249,-151.0,0.000137,2]
[352623432,1739203853259,-754.80410476,0.00013701,2]
[352623433,1739203853270,-185.94,0.00013797,2]
[352623434,1739203853280,-754.80410476,0.00013801,2]
[352623435,1739203853289,-437.9154448,0.00013835,2]
[352623436,1739203853301,-572.23539215,0.00013835,2]
[352623437,1739203853311,-500.0,0.00013835,2]
[352623438,1739203853320,-2500.0,0.00013835,2]
[352623439,1739203853329,-808.36,0.00013835,2]
[352623440,1739203853339,-9369.98,0.00013835,2]
[352623441,1739203853349,-1295.06,0.00013835,2]
[352623442,1739203853358,-3349.24,0.00013835,2]
[352623443,1739203853367,-880.25,0.00013835,2]
[352623444,1739203853377,-818.75,0.00013835,2]
[352623445,1739203853387,-2389.8,0.00013835,2]
[352623446,1739203853397,-983.98,0.00013835,2]
[352623447,1739203853408,-971.26,0.00013835,2]
[352623448,1739203853418,-3346.58,0.00013835,2]
[352623449,1739203853428,-544.70905478,0.00013835,2]
[352623450,1739203853438,-878.2,0.00013835,2]
[352623451,1739203853448,-255.6751946,0.00013859,2]
[352623452,1739203853458,-807.44052856,0.000139,2]
[352623453,1739203853468,-754.80410476,0.00013901,2]
[352623454,1739203853478,-201.43,0.00013923,2]
[352623455,1739203853487,-13267.29691025,0.00013928,2]
[352623456,1739203853496,-150.18,0.00013972,2]
[352623457,1739203853506,-285.21925602,0.00013972,2]
[352623458,1739203853516,-150.2,0.00013972,2]
[352623459,1739203853526,-500.0,0.00013972,2]
[352623460,1739203853536,-500.0,0.00013972,2]
[352623461,1739203853547,-375.33748031,0.00013972,2]
[352623462,1739203853557,-808.36,0.00013972,2]
[352623463,1739203853566,-9369.98,0.00013972,2]
[352623464,1739203853575,-1295.06,0.00013972,2]
[352623465,1739203853585,-3349.24,0.00013972,2]
[352623466,1739203853595,-880.25,0.00013972,2]
[352623467,1739203853605,-818.75,0.00013972,2]
[352623468,1739203853614,-2389.8,0.00013972,2]
[352623469,1739203853624,-983.98,0.00013972,2]
[352623470,1739203853634,-971.26,0.00013972,2]
[352623471,1739203853643,-3346.58,0.00013972,2]
[352623472,1739203853653,-878.2,0.00013972,2]
[352623473,1739203853663,-500.0,0.00013973,2]
[352623474,1739203853673,-12789.08247687,0.00013988,2]
[352623475,1739203853683,-151.0,0.00013988,2]
[352623476,1739203853693,-151.0,0.00013988,2]
[352623477,1739203853703,-151.0,0.00013988,2]
[352623478,1739203853713,-151.0,0.00013988,2]
[352623479,1739203853723,-151.0,0.00013988,2]
[352623480,1739203853732,-151.0,0.00013988,2]
[352623481,1739203853742,-151.0,0.00013988,2]
[352623482,1739203853751,-12789.08247687,0.00013988,2]
[352623483,1739203853763,-202.26,0.00013995,2]
[352623484,1739203853772,-250.0,0.00013995,2]
[352623485,1739203853782,-204.58,0.00013995,2]
[352623486,1739203853793,-167.0,0.00013995,2]
[352623487,1739203853803,-168.24,0.00013995,2]
[352623488,1739203853812,-12789.08247687,0.00013998,2]
[352623489,1739203853822,-151.0,0.00013998,2]
[352623490,1739203853831,-151.0,0.00013998,2]
[352623491,1739203853840,-151.0,0.00013998,2]
[352623492,1739203853850,-151.0,0.00013998,2]
[352623493,1739203853860,-151.0,0.00013998,2]
[352623494,1739203853870,-246.672009,0.00013998,2]
[352623495,1739203853879,-246.672009,0.00013998,2]
[352623496,1739203853888,-791.31005316,0.00013999,2]
[352623497,1739203853898,-9590.45282114,0.00014,2]
[352623498,1739203853950,-157371.2104071,0.00014,2]
[352623499,1739203853962,-200.0,0.00014,4]
[352623500,1739203853972,-200.0,0.00014,4]
[352623501,1739203853982,-195.0,0.00014,3]
[352623502,1739203853992,-195.0,0.00014,3]
[352623503,1739203854002,-187.00000001,0.00014,3]
[352623504,1739203854012,-11240.0,0.00014,2]
[352623505,1739203854021,-6847.95,0.00014,14]
[352623506,1739203854031,-277.201776,0.00014,2]
[352623507,1739203854041,-151.0,0.00014,2]
[352623508,1739203854051,-510.0,0.00014,4]
[352623509,1739203854061,-151.0,0.00014,2]
[352623510,1739203854072,-151.0,0.00014,2]
[352623511,1739203854082,-339.170398,0.00014,2]
[352623512,1739203854091,-339.170398,0.00014,2]
[352623513,1739203854101,-173.636517,0.00014,2]
[352623514,1739203854111,-173.636517,0.00014,2]
[352623515,1739203854121,-151.0,0.00014,2]
[352623516,1739203854209,-151.0,0.00014,2]
[352623517,1739203854220,-151.0,0.00014,2]
[352623518,1739203854229,-754.80410476,0.00014001,2]
[352623519,1739203854239,-754.80410476,0.00014101,2]
[352623520,1739203854249,-808.3771638,0.00014109,2]
[352623521,1739203854259,-9370.1890473,0.00014109,2]
[352623522,1739203854271,-1295.06570483,0.00014109,2]
[352623523,1739203854281,-3349.374733,0.00014109,2]
[352623524,1739203854291,-880.30018145,0.00014109,2]
[352623525,1739203854306,-818.96034051,0.00014109,2]
[352623526,1739203854316,-2389.97218463,0.00014109,2]
[352623527,1739203854326,-984.21909827,0.00014109,2]
[352623528,1739203854336,-971.44182848,0.00014109,2]
[352623529,1739203854347,-3346.77914691,0.00014109,2]
[352623530,1739203854356,-878.20692919,0.00014109,2]
[352623531,1739203854366,-500.0,0.00014132,2]
[352623532,1739203854376,-754.80410476,0.00014201,2]
[352623533,1739203854385,-200.41472956,0.00014246,2]
[352623534,1739203854395,-199.6,0.00014246,2]
[352623535,1739203854405,-500.0,0.00014246,2]
[352623536,1739203854415,-500.0,0.00014246,2]
[352623537,1739203854424,-1000.0,0.00014247,2]
[352623538,1739203854435,-341.51188927,0.00014247,2]
[352623539,1739203854444,-1000.0,0.00014247,2]
[352623540,1739203854454,-807.44052856,0.00014254,2]
[352623541,1739203854464,-1500.40957167,0.00014259,2]
[352623542,1739203854474,-708.3445788,0.00014274,2]
[352623543,1739203854484,-354.8426056,0.00014274,2]
[352623544,1739203854494,-354.8426056,0.00014274,2]
[352623545,1739203854504,-354.8426056,0.00014274,2]
[352623546,1739203854514,-708.9168997,0.00014274,2]
[352623547,1739203854524,-754.80410476,0.00014301,2]
[352623548,1739203854533,-754.80410476,0.00014401,2]
[352623549,1739203854543,-176.57946952,0.00014416,2]
[352623550,1739203854553,-569.593962,0.00014428,2]
[352623551,1739203854563,-1998.22114958,0.000145,2]
[352623552,1739203854573,-754.80410476,0.00014501,2]
[352623553,1739203854582,-500.0,0.0001452,2]
[352623554,1739203854592,-500.0,0.0001452,2]
[352623555,1739203854601,-500.0,0.00014521,2]
[352623556,1739203854611,-754.80410476,0.00014601,2]
[352623557,1739203854620,-807.44052856,0.00014608,2]
[352623558,1739203854630,-155.5163702,0.0001463,2]
[352623559,1739203854640,-1000.0,0.0001468,2]
[352623560,1739203854649,-754.80410476,0.00014701,2]
[352623561,1739203854659,-5000.0,0.00014752,2]
[352623562,1739203854668,-5000.0,0.00014752,2]
[352623563,1739203854678,-5000.0,0.00014752,2]
[352623564,1739203854688,-5000.0,0.00014752,2]
[352623565,1739203854697,-5000.0,0.00014752,2]
[352623566,1739203854707,-500.0,0.00014755,2]
[352623567,1739203854717,-500.0,0.00014794,2]
[352623568,1739203854727,-500.0,0.00014794,2]
[352623569,1739203854737,-754.80410476,0.00014801,2]
[352623570,1739203854747,-754.80410476,0.00014901,2]
[352623571,1739203854758,-807.44052856,0.00014961,2]
[352623572,1739203854768,-1732.80593811,0.0001498,2]
[352623573,1739203854778,-420931.7773054,0.0001499,7]
[352623574,1739203854788,-151.0,0.0001499,2]
[352623575,1739203854799,-151.0,0.0001499,2]
[352623576,1739203854810,-151.0,0.0001499,2]
[352623577,1739203854819,-151.0,0.0001499,2]
[352623578,1739203854829,-151.0,0.0001499,2]
[352623579,1739203854838,-314.526774,0.0001499,2]
[352623580,1739203854848,-314.526774,0.0001499,2]
[352623581,1739203854858,-151.0,0.0001499,2]
[352623582,1739203854867,-297.269518,0.0001499,2]
[352623583,1739203854877,-297.269518,0.0001499,2]
[352623584,1739203854887,-200.541573,0.0001499,2]
[352623585,1739203854897,-200.541573,0.0001499,2]
[352623586,1739203854906,-151.0,0.0001499,2]
[352623587,1739203854915,-151.0,0.0001499,2]
[352623588,1739203854925,-151.0,0.0001499,2]
[352623589,1739203854935,-151.0,0.0001499,2]
[352623590,1739203854945,-151.0,0.0001499,2]
[352623591,1739203854956,-240.931054,0.0001499,2]
[352623592,1739203854966,-339.170398,0.0001499,2]
[352623593,1739203854977,-339.170398,0.0001499,2]
[352623594,1739203854988,-173.636517,0.0001499,2]
[352623595,1739203854997,-173.636517,0.0001499,2]
[352623596,1739203855007,-155.642172,0.0001499,2]
[352623597,1739203855019,-151.0,0.0001499,2]
[352623598,1739203855029,-151.0,0.0001499,2]
[352623599,1739203855040,-151.0,0.0001499,2]
[352623600,1739203855050,-151.0,0.0001499,2]
[352623601,1739203855059,-151.0,0.0001499,2]
[352623602,1739203855069,-151.0,0.0001499,2]
[352623603,1739203855078,-151.0,0.0001499,2]
[352623604,1739203855088,-151.0,0.0001499,2]
[352623605,1739203855098,-151.0,0.0001499,2]
[352623606,1739203855108,-151.0,0.0001499,2]
[352623607,1739203855118,-151.0,0.0001499,2]
[352623608,1739203855127,-293.46899523,0.0001499,2]
[352623609,1739203855137,-275.354412,0.0001499,2]
[352623610,1739203855146,-246.672009,0.0001499,2]
[352623611,1739203855157,-246.672009,0.0001499,2]
[352623612,1739203855167,-74157.15472191,0.00015,2]
[352623613,1739203855242,-500.0,0.00011095,2]
[352623614,1739203855253,-1616.59,0.00011369,2]
[352623615,1739203855266,-1616.59,0.00011506,2]
[352623616,1739203855274,-1616.59,0.00011643,2]
[352623617,1739203855284,-1616.59,0.0001178,2]
[352623618,1739203855296,-1616.59,0.00011917,2]
[352623619,1739203855307,-42118.11561991,0.00015,2]
[352623620,1739203855418,-11286.85018974,0.00015,2]
[352623621,1739203855430,-2370.3,0.00015,2]
[352623622,1739203855603,-1952.48,0.00010958,2]
[352623623,1739203855613,-1952.48,0.00011095,2]
[352623624,1739203855623,-1952.48,0.00011232,2]
[352623625,1739203855632,-1952.48,0.00011369,2]
[352623626,1739203855642,-1952.48,0.00011506,2]
[352623627,1739203855652,-1616.59,0.00012054,2]
[352623628,1739203855662,-1616.59,0.00012191,2]
[352623629,1739203855672,-1616.59,0.00012328,2]
[352623630,1739203855682,-1616.59,0.00012465,2]
[352623631,1739203855692,-1616.59,0.00012602,2]
[352623632,1739203855702,-1616.59,0.00012739,2]
[352623633,1739203855712,-1616.59,0.00012876,2]
[352623634,1739203855722,-1616.59,0.00013013,2]
[352623635,1739203855731,-1616.59,0.0001315,2]
[352623636,1739203855741,-1616.59,0.00013287,2]
[352623637,1739203855752,-1616.59,0.00013424,2]
[352623638,1739203855761,-1616.59,0.00013561,2]
[352623639,1739203855772,-151.0,0.00013988,2]
[352623640,1739203855782,-151.0,0.0001499,2]
[352623641,1739203855792,-38191.71708629,0.00015,2]
[352623642,1739203855932,-500.0,0.00010958,2]
[352623643,1739203855942,-500.0,0.00011095,2]
[352623644,1739203855952,-1952.48,0.00011643,2]
[352623645,1739203855961,-1952.48,0.0001178,2]
[352623646,1739203855970,-1952.48,0.00011917,2]
[352623647,1739203856055,-1952.48,0.00012054,2]
[352623648,1739203856066,-1952.48,0.00012191,2]
[352623649,1739203856076,-1952.48,0.00012328,2]
[352623650,1739203856087,-1952.48,0.00012465,2]
[352623651,1739203856097,-1952.48,0.00012602,2]
[352623652,1739203856106,-1952.48,0.00012739,2]
[352623653,1739203856116,-1952.48,0.00012876,2]
[352623654,1739203856126,-1952.48,0.00013013,2]
[352623655,1739203856135,-1952.48,0.0001315,2]
[352623656,1739203856145,-1616.59,0.00013698,2]
[352623657,1739203856154,-1616.59,0.00013835,2]
[352623658,1739203856163,-1616.59,0.00013972,2]
[352623659,1739203856173,-1616.66558051,0.00014109,2]
[352623660,1739203856183,-22268.44939973,0.00015,2]
[352623661,1739203873049,1200.0,8.214e-05,2]
[352623665,1739204731130,-514.05680641,9.811e-05,2]
[352623668,1739204839114,-367.29993325,9.713e-05,2]
[352623669,1739204839144,-1139.44920561,9.713e-05,2]
[352623670,1739204839167,-2051.0,9.713e-05,2]
[352623671,1739204839188,-424.2582052,9.789e-05,2]
[352623672,1739204839210,-162.0,9.8e-05,2]
[352623673,1739204839233,-2076.96447209,9.811e-05,2]
[352623674,1739204839269,-300.0,9.866e-05,2]
[352623675,1739204839292,-839.29772154,9.867e-05,2]
[352623676,1739204846130,-2408.9787215,9.769e-05,2]
[352623677,1739204846152,-2873.81958654,9.867e-05,2]
[352623679,1739204853129,-2460.73491842,9.867e-05,2]
[352623680,1739204853152,-452.74088614,9.91e-05,2]
[352623681,1739204853177,-3138.06021,0.00010011,2]
[352623682,1739204853201,-400.0,0.00010685,2]
[352623683,1739204853222,-162.13356209,0.00010851,2]
[352623684,1739204853244,-420.0,0.00010853,2]
[352623685,1739204853267,-7078.16627618,0.00010941,2]
[352623689,1739204993288,2000.0,8.214e-05,2]
[352623706,1739205032647,-644.7736491,0.000109,2]
[352623707,1739205032657,-7438.69753278,0.00010937,2]
[352623708,1739205032667,-151.0,0.00010951,2]
[352623709,1739205032678,-300.0,0.00010956,2]
[352623710,1739205032687,-515.29678674,0.00010957,2]
[352623711,1739205032699,-180.44902155,0.00010957,2]
[352623712,1739205032710,-169.34229863,0.00010957,2]
[352623713,1739205032720,-500.0,0.00010957,2]
[352623714,1739205032731,-500.0,0.00010957,2]
[352623715,1739205032741,-500.0,0.00010957,2]
[352623716,1739205032750,-188.15810959,0.00010957,2]
[352623717,1739205032760,-500.0,0.00010957,2]
[352623719,1739205032772,-500.0,0.00010957,2]
[352623721,1739205032783,-500.0,0.00010957,2]
[352623723,1739205032793,-500.0,0.00010957,2]
[352623725,1739205032803,-500.0,0.00010957,2]
[352623727,1739205032813,-216.18209987,0.00010957,2]
[352623729,1739205032822,-500.0,0.00010958,2]
[352623731,1739205032831,-275.82439092,0.00010958,2]
[352623733,1739205032841,-459.57058276,0.00010958,2]
[352623735,1739205032851,-504.96891382,0.00010958,2]
[352623737,1739205032861,-500.0,0.00010958,2]
[352623739,1739205032870,-198.48339176,0.00010958,2]
[352623741,1739205032880,-500.0,0.00010958,2]
[352623743,1739205032890,-500.0,0.00010958,2]
[352623744,1739205032900,-500.0,0.00010958,2]
[352623745,1739205032910,-500.0,0.00010958,2]
[352623746,1739205032919,-500.0,0.00010958,2]
[352623747,1739205032930,-500.0,0.00010958,2]
[352623748,1739205032940,-500.0,0.00010958,2]
[352623749,1739205032950,-500.0,0.00010958,2]
[352623750,1739205032960,-500.0,0.00010958,2]
[352623751,1739205032969,-496.7,0.00010958,2]
[352623752,1739205033110,-500.0,0.00010958,2]
[352623753,1739205033122,-500.0,0.00010958,2]
[352623754,1739205033133,-500.0,0.00010958,2]
[352623755,1739205033143,-500.0,0.00010958,2]
[352623756,1739205033154,-500.0,0.00010958,2]
[352623757,1739205033164,-500.0,0.00010958,2]
[352623758,1739205033174,-586.70871007,0.00010958,2]
[352623759,1739205033184,-397.14071428,0.00010958,2]
[352623760,1739205033194,-500.0,0.00010958,2]
[352623761,1739205033204,-500.0,0.00010958,2]
[352623762,1739205033214,-500.0,0.00010958,2]
[352623763,1739205033225,-500.0,0.00010958,2]
[352623764,1739205033237,-500.0,0.00010958,2]
[352623765,1739205033247,-500.0,0.00010958,2]
[352623766,1739205033258,-500.0,0.00010958,2]
[352623767,1739205033268,-500.0,0.00010958,2]
[352623768,1739205033278,-500.0,0.00010958,2]
[352623769,1739205033288,-500.0,0.00010958,2]
[352623770,1739205033298,-500.0,0.00010958,2]
[352623771,1739205033308,-500.0,0.00010958,2]
[352623772,1739205033318,-500.0,0.00010958,2]
[352623773,1739205033328,-690.16,0.00010958,2]
[352623774,1739205033338,-500.0,0.00010958,2]
[352623775,1739205033348,-611.4,0.00010958,2]
[352623776,1739205033357,-500.0,0.00010958,2]
[352623777,1739205033367,-304.28702336,0.00010958,2]
[352623778,1739205033376,-500.0,0.00010958,2]
[352623779,1739205033385,-208.65336372,0.00010958,2]
[352623780,1739205033395,-500.0,0.00010958,2]
[352623781,1739205033406,-500.0,0.00010958,2]
[352623782,1739205033415,-500.0,0.00010958,2]
[352623783,1739205033425,-506.43130944,0.00010958,2]
[352623784,1739205033436,-503.32902953,0.00010958,2]
[352623785,1739205033445,-500.0,0.00010958,2]
[352623786,1739205033456,-500.0,0.00010958,2]
[352623787,1739205033466,-500.0,0.00010958,2]
[352623788,1739205033476,-500.0,0.00010958,2]
[352623789,1739205033488,-436.835,0.00010958,2]
[352623790,1739205033498,-500.0,0.00010958,2]
[352623791,1739205033508,-500.0,0.00010958,2]
[352623792,1739205033519,-703.0,0.00010958,2]
[352623793,1739205033529,-500.0,0.00010958,2]
[352623794,1739205033539,-500.0,0.00010958,2]
[352623795,1739205033549,-500.0,0.00010958,2]
[352623796,1739205033559,-562.94,0.00010958,2]
[352623797,1739205033569,-500.0,0.00010958,2]
[352623798,1739205033579,-500.0,0.00010958,2]
[352623799,1739205033589,-500.0,0.00010958,2]
[352623800,1739205033600,-500.0,0.00010958,2]
[352623801,1739205033611,-565.77,0.00010958,2]
[352623802,1739205033621,-500.0,0.00010958,2]
[352623803,1739205033631,-500.0,0.00010958,2]
[352623804,1739205033641,-500.0,0.00010958,2]
[352623805,1739205033652,-699.19,0.00010958,2]
[352623806,1739205033662,-500.0,0.00010958,2]
[352623807,1739205033672,-500.0,0.00010958,2]
[352623808,1739205033681,-500.0,0.00010958,2]
[352623809,1739205033692,-500.0,0.00010958,2]
[352623810,1739205033704,-500.0,0.00010958,2]
[352623811,1739205033714,-500.0,0.00010958,2]
[352623812,1739205033725,-500.0,0.00010958,2]
[352623813,1739205033736,-587.49,0.00010958,2]
[352623814,1739205033746,-629.48417489,0.00010958,2]
[352623815,1739205033757,-500.0,0.00010958,2]
[352623816,1739205033767,-500.0,0.00010958,2]
[352623817,1739205033779,-500.0,0.00010958,2]
[352623818,1739205033790,-500.0,0.00010958,2]
[352623819,1739205033799,-500.0,0.00010958,2]
[352623820,1739205033808,-500.0,0.00010958,2]
[352623821,1739205033818,-500.0,0.00010958,2]
[352623822,1739205033828,-500.0,0.00010958,2]